Cogmind - Beta 11 @@@ ROGUE MODE // 2022.04.09 @ 22:53:05 Player: Welles Greysong Result: Self-destructed Performance ------------- Evolutions (5) 2500 Regions Visited (9) 1800 Robots Destroyed (82) 410 Value Destroyed (1773) 1773 Prototype IDs (27) 540 Alien Tech Used (0) 0 Bonus (968) 968 TOTAL SCORE: 7991 Bonus ------- High Alert Combat Kills 78 Follower Combat Kills 90 Entered DSFs 500 Aligned with FarCom 300 Cogmind --------- Core Integrity 666/1000 Matter 194/300 Energy 210/210 System Corruption 4% Temperature Cool (76) Movement Rolling (95) Location -5/Factory Parts ------- > --- POWER (2) -------- Light Nuclear Core Light Angular Momentum Engine > --- PROPULSION (5) --- Wheel Compact Wheel Compact Wheel Compact Wheel > --- UTILITY (7) ------ Medium Storage Unit Visual Processing Unit Improved Terrain Scanner Advanced Terrain Scan Processor Transport Network Coupler Improved Transmission Jammer Improved System Shield > --- WEAPON (3) ------- High-powered Shock Rifle Heavy Missile Launcher > --- INVENTORY (10) --- Light Ion Engine Reinforced Deuterium Engine Advanced Weight Redist. System Matter Filter Advanced Recalibrator Supersonic Drone Bay (1/1) Advanced Plasma Cannon Improved Remote Datajack Chainsword Peak State ------------ > --- POWER ------------ Heavy Ion Engine Deuterium Engine > --- PROPULSION ------- Flight Unit Flight Unit Flight Unit Flight Unit Xenon Bombardment Thruster > --- UTILITY ---------- Small Storage Unit Advanced Weight Redist. System Visual Processing Unit Improved Terrain Scanner Advanced Terrain Scan Processor Transmission Jammer Improved System Shield > --- WEAPON ----------- Smartbomb Launcher Chainsword > --- INVENTORY -------- Reinforced Deuterium Engine Improved Hover Unit Supersonic Drone Bay Heavy Rocket Launcher Chainsword [Rating: 54] Favorites ----------- Power Light Nuclear Core Engine Heavy Ion Engine Power Core Light Nuclear Core Propulsion Light Treads Treads Light Treads Wheel Compact Wheel Hover Unit Improved Hover Unit Flight Unit Flight Unit Utility Improved Terrain Scanner Device Improved Terrain Scanner Storage High-capacity Storage Unit Processor Visual Processing Unit Hackware Improved System Shield Weapon EM Pulse Gun Energy Gun EM Pulse Gun Ballistic Gun Assault Rifle Ballistic Cannon Improved Light Cannon Launcher Mini Grenade Launcher Impact Weapon Mace Slashing Weapon Chainsword Build | -11 -10 -10 -10 -9 -8 -7 -6 -6 -5 ------- Run | Scr Mat Min Exi Min Mat Fac Fac DSF Fac Slots Evolved 10 | . . . . . 4 2 2 . 2 Power 1 | . . . . . 1 . . . . Propulsion 3 | . . . . . 2 1 . . . Utility 5 | . . . . . 1 1 2 . 1 Weapon 1 | . . . . . . . . . 1 Parts Attached 76 | 7 3 7 . . 10 15 4 2 28 Power 12 | 1 . 1 . . 3 2 1 1 3 Engine 10 | 1 . . . . 3 2 1 1 2 Core 2 | . . 1 . . . . . . 1 Reactor . | . . . . . . . . . . Propulsion 20 | 2 . 1 . . 3 5 1 . 8 Treads 6 | 2 . 1 . . 3 . . . . Leg . | . . . . . . . . . . Wheel 7 | . . . . . . . . . 7 Hover 2 | . . . . . . 1 . . 1 Flight 5 | . . . . . . 4 1 . . Utility 21 | 2 1 2 . . 3 3 2 1 7 Device 10 | 1 . 1 . . 1 1 2 . 4 Storage 6 | 1 1 1 . . 1 1 . . 1 Processor 4 | . . . . . 1 1 . 1 1 Hackware 1 | . . . . . . . . . 1 Protection . | . . . . . . . . . . Artifact . | . . . . . . . . . . Weapon 23 | 2 2 3 . . 1 5 . . 10 Energy Gun 7 | . . 2 . . . 2 . . 3 Energy Cannon . | . . . . . . . . . . Ballistic Gun 2 | 2 . . . . . . . . . Ballistic Cannon 3 | . 2 1 . . . . . . . Launcher 7 | . . . . . . 2 . . 5 Special Weapon . | . . . . . . . . . . Impact Weapon 1 | . . . . . 1 . . . . Slashing Weapon 3 | . . . . . . 1 . . 2 Piercing Weapon . | . . . . . . . . . . Special Melee Weapon . | . . . . . . . . . . Unidentified Prototypes 2 | . . . . . . 1 . . 1 Parts Lost 18 | . . . . . . . . 1 17 Power 4 | . . . . . . . . 1 3 Propulsion 9 | . . . . . . . . . 9 Utility 1 | . . . . . . . . . 1 Weapon 4 | . . . . . . . . . 4 Highest Loss Streak 9 | . . . . . . . . 1 9 To Critical Strikes . | . . . . . . . . . . Average Slot Usage (%) 93 | . 100 100 100 100 87 89 92 98 80 Engine 5 | . 14 2 . . 4 7 8 11 8 Core 7 | . . 11 14 14 9 4 . . . Treads 21 | . 28 28 28 28 30 19 . . . Wheel 1 | . . . . . . . . . 9 Flight 3 | . . . . . . 10 28 33 8 Device 12 | . 14 14 14 14 9 11 16 20 12 Storage 10 | . 14 14 14 14 8 7 6 6 5 Processor 4 | . . . . . 8 9 13 13 13 Energy Gun 13 | . . 10 28 28 16 6 . . 1 Ballistic Cannon 5 | . 27 17 . . . . . . . Slashing Weapon 1 | . . . . . . 2 6 6 6 Naked Turns . | . . . . . . . . . . Heaviest Build 59 | 12 32 50 50 50 59 59 24 28 41 Greatest Support 80 | 40 40 40 40 40 80 80 31 31 68 Greatest Overweight (x) 6 | . . 1 1 1 . 2 2 . 6 Average Overweight (x) . | . . . 1 1 . . . . 1 Largest Inventory Capacity 20 | 8 15 20 20 20 20 20 8 8 10 Average Capacity 15 | 7 11 15 20 20 18 16 8 8 8 Most Carried 20 | 7 15 15 20 20 20 20 8 8 10 Average Carried 13 | 4 10 14 18 20 17 15 7 7 7 Final Capacity 20 | 8 15 20 20 20 20 8 8 8 10 Final Carried 20 | 6 15 15 20 20 20 8 7 8 9 Class Distribution -------------------- 51% | Mutant 19% | Scavenger-Assassin 14% | Scavenger-Skirmisher 6% | Skirmisher 4% | Assassin Dominant Class ---------------- Mutant | -10/Materials Mutant | -10/Mines Mutant | -10/Exiles Skirmisher | -9/Mines Scavenger-Skirmisher | -8/Materials Scavenger-Assassin | -7/Factory Scavenger-Ninja | -6/Factory Scavenger-Ninja | -6/DSF Scavenger-Assassin | -5/Factory Resources | -11 -10 -10 -10 -9 -8 -7 -6 -6 -5 ----------- Run | Scr Mat Min Exi Min Mat Fac Fac DSF Fac Matter Collected 2047 | 121 350 464 142 . 50 250 . . 670 Remotely . | . . . . . . . . . . Salvage Created 2313 | 104 340 376 . . 60 372 . . 1061 Parts 133 | 5 28 23 . . 4 17 . . 56 Haulers Intercepted 5 | . 2 . . . 1 1 . . 1 Recyclers Shooed 5 | . . 2 . 1 . . . . 2 Parts Field Recycled . | . . . . . . . . . . Retrieved Matter . | . . . . . . . . . . Parts Self-Destructed . | . . . . . . . . . . Prevented . | . . . . . . . . . . Kills | -11 -10 -10 -10 -9 -8 -7 -6 -6 -5 ------- Run | Scr Mat Min Exi Min Mat Fac Fac DSF Fac Combat Hostiles Destroyed 39 | . 7 9 . . . 4 . . 19 Melee 3 | . 1 . . . . . . . 2 Guns 1 | . . . . . . . . . 1 Cannons 15 | . 6 9 . . . . . . . AOE 20 | . . . . . . 4 . . 16 Classes Destroyed 13 | 2 4 2 . . . . . . 5 Worker 11 | . . 2 . . . 1 . . 8 Builder 8 | . 1 1 . . . . . . 6 Tunneler 3 | 1 . 1 . . . . . . 1 Hauler 5 | . 2 . . . 1 1 . . 1 Recycler 10 | 1 1 2 . . . 3 . . 3 Mechanic 1 | . . . . . . . . . 1 Watcher 5 | . 3 . . . . 1 . . 1 Swarmer 18 | . . 5 . . . 4 . . 9 Grunt 16 | . 7 4 . . . . . . 5 Duelist 1 | . . . . . . . . . 1 Sentry 1 | . . . . . . . . . 1 Hunter 1 | . . . . . . . . . 1 Programmer 2 | . . . . . . . . . 2 Best Kill Streak 22 | 2 5 5 . . 1 6 . . 22 Combat Bots Only 5 | . 2 5 . . . 4 . . 4 Max Kills in Single Turn 5 | 1 1 2 . . 1 1 . . 5 Gunslinging . | . . . . . . . . . . Exploded 3 | . . . . . . 1 . . 3 Melee 1 | . 1 . . . . . . . 1 Uniques/NPCs Destroyed . | . . . . . . . . . . Combat | -11 -10 -10 -10 -9 -8 -7 -6 -6 -5 -------- Run | Scr Mat Min Exi Min Mat Fac Fac DSF Fac Damage Taken 2584 | . 373 420 . . 49 136 . 112 1494 Core 588 | . 81 86 . . . 45 . 42 334 Absorbed by Shields . | . . . . . . . . . . Regen/Repaired (Parts) 213 | . . . . . 195 . . . 18 Core Remaining (%) 84 | 100 . . . 33 100 93 . 95 . Volleys Fired 128 | 8 45 26 . 2 7 5 . . 35 Largest 3 | 2 2 2 . 2 2 1 . . 3 Hottest 180 | 40 78 80 . 80 80 30 . . 180 Shots Fired 219 | 16 90 52 . 4 14 5 . . 38 Gun 49 | 16 . 10 . 4 14 . . . 5 Cannon 132 | . 90 42 . . . . . . . Launcher 38 | . . . . . . 5 . . 33 Special . | . . . . . . . . . . Kinetic 148 | 16 90 42 . . . . . . . Thermal . | . . . . . . . . . . Explosive 38 | . . . . . . 5 . . 33 Electromagnetic 33 | . . 10 . 4 14 . . . 5 Robot Hit Streak 11 | 5 9 6 . 7 11 1 . . 2 Robot Miss Streak 4 | 3 4 3 . . 3 3 . . 3 Penetration Max . | . . . . . . . . . . Secondary Targets . | . . . . . . . . . . Shots Hit Robots 132 | 10 47 29 . 4 6 9 . . 27 Core Hits 117 | 4 15 19 . . 2 12 . . 65 Critical Kills . | . . . . . . . . . . Critical Parts Destroyed . | . . . . . . . . . . Critical Strikes 3 | . 2 1 . . . . . . . Blast 3 | . 2 1 . . . . . . . Melee Attacks 39 | . . . . . 1 7 . . 31 Impact 1 | . . . . . 1 . . . . Slashing 38 | . . . . . . 7 . . 31 Piercing . | . . . . . . . . . . Sneak Attacks 14 | . . . . . . 5 . . 9 Combat Hostiles . | . . . . . . . . . . Follow-up Attacks . | . . . . . . . . . . Damage Inflicted 8261 | 102 1029 712 . 53 103 944 . . 5318 Guns 422 | 102 . 91 . 53 103 . . . 73 Cannons 1498 | . 991 507 . . . . . . . Explosions 4715 | . . 69 . . . 477 . . 4169 Melee 1543 | . . . . . . 467 . . 1076 Ramming 83 | . 38 45 . . . . . . . Kinetic 1600 | 102 991 507 . . . . . . . Thermal 468 | . . 69 . . . . . . 399 Explosive 4247 | . . . . . . 477 . . 3770 Electromagnetic 320 | . . 91 . 53 103 . . . 73 Impact . | . . . . . . . . . . Slashing 1543 | . . . . . . 467 . . 1076 Piercing . | . . . . . . . . . . Highest Corruption 4 | . . . . . . . . . 4 Average Corruption 2 | . . . . . . . . . 2 Corruption Purged . | . . . . . . . . . . Corruption Blocked . | . . . . . . . . . . Effects 3 | . . . . . . . . . 3 Matter Fused 2 | . . . . . . . . . 2 Heat Flow Errors 1 | . . . . . . . . . 1 Overload Shots . | . . . . . . . . . . Overflow Damage 534 | . . 4 . . . 98 . . 432 Projectiles 4 | . . 4 . . . . . . . Explosions 309 | . . . . . . 69 . . 240 Melee 221 | . . . . . . 29 . . 192 Knockbacks 15 | . 10 5 . . . . . . . Impact . | . . . . . . . . . . Kinetic 15 | . 10 5 . . . . . . . Secondary . | . . . . . . . . . . Self-Inflicted Damage 149 | . . 31 . . . . . . 118 Shots 3 | . . 1 . . . . . . 2 Rammed 17 | . 5 12 . . . . . . . Targets Rammed 20 | . 6 14 . . . . . . . Kicked . | . . . . . . . . . . Crushed 3 | . 1 2 . . . . . . . Highest Temperature 392 | . 261 142 . 24 24 . 2 . 392 Average Temperature 70 | . 82 50 . 14 11 . 1 . 144 Received Heat Transfer 504 | . 192 114 . . 9 . . . 189 Effects 1 | . . . . . . . . . 1 Energy Bleed 1 | . . . . . . . . . 1 Siege Activations . | . . . . . . . . . . Robots Corrupted . | . . . . . . . . . . Combat Hostiles . | . . . . . . . . . . Parts Fried 2 | . . . . . . . . . 2 Impact Corruptions . | . . . . . . . . . . Robots Melted . | . . . . . . . . . . Combat Hostiles . | . . . . . . . . . . Parts Melted . | . . . . . . . . . . Heat Transferred 300 | . . 100 . . . . . . 200 Parts Sabotaged . | . . . . . . . . . . Parts Stolen . | . . . . . . . . . . Parts Stripped . | . . . . . . . . . . Power Chain Reactions 1 | . . 1 . . . . . . . Missiles Intercepted . | . . . . . . . . . . Alert | -11 -10 -10 -10 -9 -8 -7 -6 -6 -5 ------- Run | Scr Mat Min Exi Min Mat Fac Fac DSF Fac Peak Influence 666 | 10 197 325 . 81 159 177 86 63 666 Initial 86 | . 6 42 . . 31 28 86 63 27 Average 128 | 3 91 207 . 64 39 82 86 57 244 Maximum Alert Level 2 | . . 1 . . . . . . 2 Low Security (%) 83 | 100 100 49 . 100 100 100 100 100 60 Level 1 10 | . . 50 . . . . . . 16 Level 2 6 | . . . . . . . . . 23 Level 3 . | . . . . . . . . . . Level 4 . | . . . . . . . . . . Level 5 . | . . . . . . . . . . High Security . | . . . . . . . . . . Max Security . | . . . . . . . . . . Squads Dispatched 4 | . . . . . . . . 1 3 Investigation . | . . . . . . . . . . Extermination 1 | . . . . . . . . . 1 Reinforcement 3 | . . . . . . . . 1 2 Assault . | . . . . . . . . . . Garrison . | . . . . . . . . . . Intercept . | . . . . . . . . . . Searches Triggered . | . . . . . . . . . . Construction Impeded 1 | . . . . . . . . . 1 Haulers Reinforced 1 | . . . . . . . . . 1 Active Scanning Responses . | . . . . . . . . . . Cargo Convoy Interrupts . | . . . . . . . . . . Stealth | -11 -10 -10 -10 -9 -8 -7 -6 -6 -5 --------- Run | Scr Mat Min Exi Min Mat Fac Fac DSF Fac Distress Signals 5 | . 3 . . . 1 . . . 1 Communications Jammed 1 | . . . . . . . . . 1 Distress Signals 1 | . . . . . . . . . 1 Times Spotted 69 | . 14 10 . 2 8 5 . 1 29 Peak Tracking Total 6 | . 4 4 . 2 3 3 . 1 6 Tactical Retreats 4 | . 1 . . . . . . . 3 Traps | -11 -10 -10 -10 -9 -8 -7 -6 -6 -5 ------- Run | Scr Mat Min Exi Min Mat Fac Fac DSF Fac Traps Triggered 3 | . 1 . . . . . . 1 1 Indirectly . | . . . . . . . . . . Trap Hack Attempts . | . . . . . . . . . . Triggered . | . . . . . . . . . . Disarmed . | . . . . . . . . . . Reprogrammed . | . . . . . . . . . . Reused . | . . . . . . . . . . Traps Extracted . | . . . . . . . . . . Installed . | . . . . . . . . . . Triggered . | . . . . . . . . . . Exploded 1 | . . . . . . . . 1 . Machines | -11 -10 -10 -10 -9 -8 -7 -6 -6 -5 ---------- Run | Scr Mat Min Exi Min Mat Fac Fac DSF Fac Machines Disabled 7 | . 1 . . . . 1 . . 5 Max in Single Turn 3 | . 1 . . . . 1 . . 3 Garrison Access 1 | . . . . . 1 . . . . Machines Sabotaged . | . . . . . . . . . . Garrisons Compromised . | . . . . . . . . . . Overloaded Fab Kills . | . . . . . . . . . . Hacking | -11 -10 -10 -10 -9 -8 -7 -6 -6 -5 --------- Run | Scr Mat Min Exi Min Mat Fac Fac DSF Fac Machines Accessed 21 | . 3 . 4 . 5 1 2 . 6 Terminals 11 | . 3 . . . 2 1 1 . 4 Fabricators 1 | . . . . . . . . . 1 Repair Stations 2 | . . . . . 1 . . . 1 Recycling Units 1 | . . . . . 1 . . . . Scanalyzers . | . . . . . . . . . . Garrison Access 2 | . . . . . 1 . 1 . . Total Hacks 70 | . 10 . 27 . 17 1 2 . 13 Successful 49 | . 5 . 27 . 8 . 1 . 8 Failed 21 | . 5 . . . 9 1 1 . 5 Catastrophic 4 | . 1 . . . 1 . 1 . 1 Database Lockouts . | . . . . . . . . . . Manual 13 | . 4 . 3 . 5 . . . 1 Terminals 28 | . 10 . . . 7 1 1 . 9 Fabricators 1 | . . . . . . . . . 1 Repair Stations 5 | . . . . . 2 . . . 3 Recycling Units 4 | . . . . . 4 . . . . Scanalyzers . | . . . . . . . . . . Garrison Access 5 | . . . . . 4 . 1 . . Terminal Hacks 40 | . 5 . 27 . 3 . 1 . 4 Record 31 | . 1 . 26 . 2 . . . 2 Prototype ID Bank 1 | . 1 . . . . . . . . Open DSF 3 | . . . . . . . 1 . 2 Branch Access Points 1 | . 1 . . . . . . . . Alert Level 1 | . 1 . . . . . . . . Hauler Manifests 1 | . 1 . . . . . . . . Zone Layout 1 | . . . . . 1 . . . . EX-Prototype ID Bank 1 | . . . 1 . . . . . . Fabricator Hacks 1 | . . . . . . . . . 1 Build 1 | . . . . . . . . . 1 Repair Station Hacks 4 | . . . . . 2 . . . 2 Scan Component 2 | . . . . . 1 . . . 1 Repair 2 | . . . . . 1 . . . 1 Recycling Unit Hacks 1 | . . . . . 1 . . . . Report Inventory 1 | . . . . . 1 . . . . Scanalyzer . | . . . . . . . . . . Garrison Access Hacks 1 | . . . . . 1 . . . . Seal Access 1 | . . . . . 1 . . . . Unauthorized Hacks 2 | . . . . . 1 . . . 1 Terminals 1 | . . . . . . . . . 1 Track 1 | . . . . . . . . . 1 Fabricators . | . . . . . . . . . . Repair Stations . | . . . . . . . . . . Recycling Units 1 | . . . . . 1 . . . . Reject 1 | . . . . . 1 . . . . Scanalyzers . | . . . . . . . . . . Garrison Access . | . . . . . . . . . . Data Cores Recovered . | . . . . . . . . . . Used . | . . . . . . . . . . Hacking Detections 14 | . 3 . . . 4 1 2 . 4 Full Trace Events 1 | . . . . . 1 . . . . Feedback Events . | . . . . . . . . . . Feedback Blocked . | . . . . . . . . . . Robot Schematics Acquired . | . . . . . . . . . . Robots Built . | . . . . . . . . . . Authchips . | . . . . . . . . . . Time . | . . . . . . . . . . Total Robot Build Rating . | . . . . . . . . . . Part Schematics Acquired . | . . . . . . . . . . Parts Built 2 | . . . . . . . . . 2 Authchips . | . . . . . . . . . . Time 53 | . . . . . . . . . 53 Total Part Build Rating 12 | . . . . . . . . . 12 Parts Repaired 2 | . . . . . 1 . . . 1 Time 54 | . . . . . 26 . . . 28 Parts Recycled . | . . . . . . . . . . Recycled Matter . | . . . . . . . . . . Retrieved Matter . | . . . . . . . . . . Retrieved Components . | . . . . . . . . . . Parts Scanalyzed . | . . . . . . . . . . Part Schematics Acquired . | . . . . . . . . . . Parts Damaged . | . . . . . . . . . . Bothacking | -11 -10 -10 -10 -9 -8 -7 -6 -6 -5 ------------ Run | Scr Mat Min Exi Min Mat Fac Fac DSF Fac Used RIF Installer . | . . . . . . . . . . Robots Hacked . | . . . . . . . . . . Non-combat . | . . . . . . . . . . Combat . | . . . . . . . . . . Robot Hacks Applied . | . . . . . . . . . . Relay Couplers Released . | . . . . . . . . . . Fabnet Peak Effective % . | . . . . . . . . . . Robots Rewired . | . . . . . . . . . . Allies Hacked . | . . . . . . . . . . Hacks Repelled . | . . . . . . . . . . Allies | -11 -10 -10 -10 -9 -8 -7 -6 -6 -5 -------- Run | Scr Mat Min Exi Min Mat Fac Fac DSF Fac Total Allies 3 | . . . . 3 . . . . . Largest Group 3 | . . . . 3 3 2 . . . Highest-Rated Group 40 | . . . . 40 40 24 . . . Highest-Rated Ally 16 | . . . . 16 16 16 . . . Total Orders . | . . . . . . . . . . Ally Attacks 49 | . . . . 17 25 7 . . . Total Damage 453 | . . . . 130 299 24 . . . Kills 11 | . . . . 3 8 . . . . Allies Corrupted . | . . . . . . . . . . Allies Melted . | . . . . . . . . . . Intel | -11 -10 -10 -10 -9 -8 -7 -6 -6 -5 ------- Run | Scr Mat Min Exi Min Mat Fac Fac DSF Fac Robot Analysis Total . | . . . . . . . . . . Derelict Logs Recovered . | . . . . . . . . . . Drone Launches . | . . . . . . . . . . Drone Recoveries . | . . . . . . . . . . Exploration | -11 -10 -10 -10 -9 -8 -7 -6 -6 -5 ------------- Run | Scr Mat Min Exi Min Mat Fac Fac DSF Fac Turns Passed 4615 | 121 657 402 1181 285 637 307 96 42 887 Spaces Moved 2312 | 59 285 165 491 117 332 185 91 113 474 Core 48 | 13 . . . . . . . . 35 Treads 1524 | 46 285 165 491 117 332 88 . . . Legs . | . . . . . . . . . . Wheels 292 | . . . . . . . . . 292 Hover 97 | . . . . . . 25 70 . 2 Flight 351 | . . . . . . 72 21 113 145 Fastest Speed 28 | 50 160 160 240 240 160 31 28 28 90 Average Speed 159 | 135 160 167 240 240 161 116 67 28 119 Slowest Speed 350 | 160 160 240 240 240 165 180 180 28 350 Overloaded Moves . | . . . . . . . . . . Propulsion Burnouts . | . . . . . . . . . . Robots Hopped . | . . . . . . . . . . Cave-ins Triggered . | . . . . . . . . . . Exploration Rate (%) 32 | 5 39 32 92 17 25 6 3 86 15 Regions Visited 9 Branch Regions 3 Pre-discovered Areas . | . . . . . . . . . . Known Exits Taken 2 | . 1 . . . . . 1 . . Unknown Exits Taken 6 | 1 . 1 1 1 1 1 . . . Scrap Searched 1 | . . 1 . . . . . . . Spaces Dug 2 | . 1 . . . 1 . . . . Terrain Destroyed 267 | . 6 11 . . 1 26 . . 223 Melee 1 | . . . . . 1 . . . . Projectile 12 | . 6 6 . . . . . . . AOE 254 | . . 5 . . . 26 . . 223 Terrain Rammed . | . . . . . . . . . . Walls Destroyed . | . . . . . . . . . . Machines Disabled . | . . . . . . . . . . Actions | -11 -10 -10 -10 -9 -8 -7 -6 -6 -5 --------- Run | Scr Mat Min Exi Min Mat Fac Fac DSF Fac Total 2976 | 85 400 234 495 118 422 267 124 122 709 Wait 254 | . 26 10 . . 40 30 29 4 115 Move 2303 | 58 284 164 490 116 331 184 90 112 474 Hop . | . . . . . . . . . . Pick Up 97 | 12 22 5 5 . 22 6 1 3 21 Fast Attach 14 | 1 . 2 . . 3 2 1 . 5 Attach 35 | 6 . . . . 3 5 2 1 18 Detach 2 | . . . . . . 1 . . 1 Swap 27 | . 3 5 . . 4 8 1 1 5 Drop 59 | . 14 8 . . 11 19 . 1 6 Fire 128 | 8 45 26 . 2 7 5 . . 35 Melee 37 | . . . . . 1 7 . . 29 Ram . | . . . . . . . . . . Kick . | . . . . . . . . . . Crush 20 | . 6 14 . . . . . . . Escape Stasis . | . . . . . . . . . . Rewire . | . . . . . . . . . . Trap . | . . . . . . . . . . Miscellaneous . | . . . . . . . . . . Route ------- -11/Scrapyard -10/Materials (discovered 4 exits: [*Mat x3] / *Min) -10/Mines -10/Exiles -9/Mines -8/Materials -7/Factory -6/Factory -6/DSF -5/Factory (discovered 1 exit: [Upp]) History --------- Turn | Location | Event 23 | -11/Scrapyard | Discovered new exit (range 16) 122 | -11/Scrapyard | Entered Materials 288 | -10/Materials | Discovered new exit (range 16) 313 | -10/Materials | Build established: Mutant 407 | -10/Materials | Discovered new exit (range 16) 525 | -10/Materials | Identified exit to Mines 603 | -10/Materials | Discovered new exit (range 16) 779 | -10/Materials | Entered Mines 902 | -10/Mines | Core integrity fell below 50% 1172 | -10/Mines | Deemed a non-threat by the Exiles lab entrance 1172 | -10/Mines | Discovered new exit (range 5) 1181 | -10/Mines | Entered Exiles 1244 | -10/Exiles | Met 8R-AWN 1283 | -10/Exiles | Met EX-HEX 1427 | -10/Exiles | Met EX-DEC 1473 | -10/Exiles | Visited The Gauntlet 1916 | -10/Exiles | Met EX-BIN 1950 | -10/Exiles | Aligned with FarCom system 1952 | -10/Exiles | Given EX-Vault access code 2048 | -10/Exiles | Opened EX-Vault 2072 | -10/Exiles | Found Supersonic Drone Bay 2119 | -10/Exiles | Warned to stay clear of 0b10 Research branches 2336 | -10/Exiles | Discovered new exit (range 14) 2362 | -10/Exiles | Left Exiles lab with Supersonic Drone Bay 2362 | -10/Exiles | Entered Mines 2372 | -9/Mines | Assisted by bots powering up and referring to "LRC-V3" 2604 | -9/Mines | Discovered new exit (range 9) 2647 | -9/Mines | Entered Materials 2647 | -8/Materials | Accompanied by 3 allies 2647 | -8/Materials | Evolved 4 slots: Power x1, Propulsion x2, Utility x1 2759 | -8/Materials | Repaired Hcp. Storage Unit 2935 | -8/Materials | Build established: Scavenger-Skirmisher 3206 | -8/Materials | Discovered new exit (range 3) 3284 | -8/Materials | Entered Factory 3284 | -7/Factory | Accompanied by 2 allies 3284 | -7/Factory | Evolved 2 slots: Propulsion x1, Utility x1 3540 | -7/Factory | Discovered new exit (range 17) 3591 | -7/Factory | Entered another Factory area 3591 | -6/Factory | Evolved 2 slots: Utility x2 3687 | -6/Factory | Identified exit to DSF 3687 | -6/Factory | Entered DSF 3711 | -6/DSF | Additional patrols routed to DSF 3725 | -6/DSF | Discovered new exit (range 14) 3729 | -6/DSF | Entered Factory 3729 | -5/Factory | Evolved 2 slots: Utility x1, Weapon x1 4048 | -5/Factory | Lost 9 parts (1p6n1u1w) 4358 | -5/Factory | Fabricated Remote Force Field? 4474 | -5/Factory | Lost 5 parts (2p2n1w) 4496 | -5/Factory | Build established: Scavenger-Assassin 4549 | -5/Factory | Repaired Imp. Transmission Jammer 4583 | -5/Factory | Discovered new exit (range 14) 4616 | -5/Factory | Self-destructed Last Messages --------------- 04563_ ALERT: Rogue bot located, Programmers report to Factory Zone 5Q. 04575_ Slug penetrates Wall. 04575_ Wheel destroyed. 04583_ EXIT=FOUND 04586_ Slug penetrates Wall. 04593_ Penetrated by Slug. 04593_ Hpw. Shock Rifle destroyed. 04595_ Targeting Computer fried. 04595_ H-66 Slayer destroyed. 04596_ K-01 Serf collects debris. 04597_ System corrupted: Heat flow error (+248). 04598_ Acquired 67 matter. 04601_ K-01 Serf collects debris. 04602_ Overheating: Energy bleed (-30). 04605_ K-01 Serf collects debris. 04613_ The unstable cave ceiling collapses. 04614_ K-01 Serf destroyed. 04615_ The unstable cave ceiling collapses. 04615_ Hpw. Shock Rifle destroyed. 04615_ K-01 Serf collects debris. Map ----- +----------------------------------------------------+ | ????????? ?? ? ?? ???##???#???????????????????? | | ?????????????? ""? ? #?#?#??##??????????????????? | | ???????????""? """ ? #######?#?? ? #????????????? | | ???????"?" "?"?""" #?######?#?+???????????????? | | ????????? ?? ?######### ? ??????????????? | | ??????? ??? ? ? #?###?#???""???????????????? | | ????????? ? ?#######?#?"T ?????????????? | | ????????? ##?###############?##?""" ?????????????? | | ?????? ???#### ##### ?#???????????? | | ??????????#### ##### #???????????? | | ??????#?##?### ########??##???????????? | | ??????? #?#### """ """ ##?######?##???????????? | | ?????? ??#### """ """ # ? #????????????? | | ?????? < ##?## """ """ # #?#??????????? | | ?????# ? ##### # ###???#??##?#? | | ??????#?######[ """ "" # """ """ ##????#???#### | | ?????## #?##?# """ """# """ """ #?###???###### | | ??????? ###### """ R"# """ """ #####?######## | | ????????###?## """# ###?#?# | | ?????##?###### # ####?##] """ | | ????### ############+#######+#### ;;###### ! """ | | ?????## ?# ## =*%=! ; #### """ | | ??????#?# =[[ ; #### | | ??????# ## = k ; #### * """ | | ???????? p w ###### """ | | ???????? Y Y p @ ### # ! """ | | ??????? ####[ # # | | ????????# ####? #[ k %## # # ##+ | | ???????? ?? ###?## "? # /// k | | ???????? ?? ##### """ # /// = | | ????????????###### R" + // = ! | | ????????????###### """ # =!= | | ??????????#?#?#### "" # k | | ????????????"? # ? # ######### | | ????????????"" ? ?# #### # # ## | | ?????????????? ?# ? ? # ##?# ## % # | | ??????????????s ??"""??# # # ### | | ????????????sss??? "?"? # # """ # ## | | ???????????????? ? "?"??+ # """ # | | ??????????????? ?? ? ? ?# # """ # # | | ??????????????? ?????? # # # # | | ?????????????????#?###??# # """ # ## | | ??????????????????? ??? # """ # """ | | ??????????????????????? # ""? # """ | | ??????????????????????? # ? ? + A | | ??????????????????????? # !!????# """ | | ????????????????????????? # ! ? ?# "?" | | ???????????????????????????###? !? ?? # "?? | | ???????????????????????????????? ?????# "??? ??? | | ??????????????????????????????????????? ???????? | +----------------------------------------------------+ Best States ------------- Heat Dissipation 40 Energy Generation 27 Energy Capacity 455 Matter Stores 300 Matter Capacity 300 Sight Range 18 Terrain Scan Range 16 Terrain Scan Density 210 Jamming Range 14 Additional Mass Support 9 Evasion (%) 64 Recoil Reduction 4 Defensive Hacking 12 Item Schematics ----------------- None Robot Schematics ------------------ None Fabricated ------------ Remote Force Field | x2 | -5/Factory | Preloaded Alien Tech Used ----------------- None Achievements -------------- No Signal Challenges ------------ None Game ------ Seed TachyonAlphaMachine Manual? 0 Play Time 00:49:55 Cumulative 13.5 hours Start 2022.04.09 @ 22:05:19 End 2022.04.09 @ 22:53:05 Sessions 1 Manual Loads 0 Difficulty Rogue Special Mode None Game No. 42 Rogue 42 Adventurer 0 Explorer 0 Win Type - Total 0 Types 0/0/0/0/0/0/0/0/0 Lore% 29 Gallery% 34 Achievement% 26 Wizard Run 0 Options --------- ASCII 0 Keyboard 0 Movement Mouse Keybinds 0 Fullscreen 2 Font 18/SmallcapsGlow Map View 76x50 Tactical HUD 1 Map Filters NONE Filters NONE Steam 1 RUN: bc56bcc4-45c7-4372-8186-425deb847515